[Event "71st Greek Championship 2022"]
[Site "Athens"]
[Date "2022.12.06"]
[Round "4.4"]
[White "Naoum, Spyridon"]
[Black "Marinakis, Hristos"]
[Result "1-0"]
[ECO "D45"]
[WhiteElo "2352"]
[BlackElo "2118"]
[Annotator "TA"]
[PlyCount "117"]
[EventDate "2022.12.04"]
[EventType "tourn"]
[EventCountry "GRE"]
[SourceTitle "playchess.com"]
[Source "ChessBase"]
[SourceQuality "1"]
[TimeControl "40/5400+30:1800+30"]

{[%evp 13,117,8,8,9,16,16,21,22,13,11,13,9,21,10,19,16,12,8,7,8,17,-12,0,0,0,0,-10,-46,-14,-57,13,-13,-22,-164,0,0,12,0,83,69,108,104,112,64,185,182,186,181,180,181,183,0,0,0,148,145,144,137,141,136,143,152,151,131,137,137,154,154,154,154,154,154,175,175,153,149,218,195,268,259,302,221,190,206,188,162,370,370,377,345,370,370,770,762,716,669,755,627,676,166,166,166,29976,29977,29966,29967]} 1. d4 {[%emt 0:01:08]} d5 {[%emt 0:00:24]} 2. c4 {[%emt 0:00:14]} e6 {[%emt 0:00:05]} 3. Nc3 {[%emt 0:00:22]} c6 {[%emt 0:00:16]} 4. e3 {[%emt 0:07:02]} Nf6 {[%emt 0:01:58]} 5. Nf3 {[%emt 0:00:06][%cal Bg1f3,Bf3d2,Bd2c4,Bc4d6][%mdl 32]} Nbd7 {[%emt 0:04:50]} 6. Be2 {[%emt 0:01:03]} dxc4 {[%emt 0:10:44]} 7. a4 {[%emt 0:00:40]} Bd6 {[%emt 0:05:57]} 8. Nd2 {[%emt 0:06:58] D45: Semi-Slav: 5 e3.} O-O {[%emt 0:04:14]} 9. Nxc4 {[%emt 0:00:06]} Bc7 {[%emt 0:04:13]} 10. b3 {[%emt 0:22:29] The position is equal.} e5 {[%emt 0:05:20]} 11. Ba3 {[%emt 0:02:39]} Re8 {[%emt 0:00:31]} 12. Nd6 {[%emt 0:02:47]} Re6 {[%emt 0:15:11]} 13. dxe5 {[%emt 0:11:23]} (13. Nxc8 {seems wilder.} exd4 14. Qxd4 Be5 15. Qd3) 13... Nxe5 {[%emt 0:00:52][%cal Rc7d6]} 14. Nxc8 {[%emt 0:00:04] [#]} Qxc8 $146 {[%emt 0:07:10]} ({Predecessor:} 14... Rxc8 15. Qxd8+ Rxd8 16. O-O h6 17. Rfd1 Ree8 18. h3 Ng6 19. Rxd8 Rxd8 20. Rd1 Rxd1+ 21. Bxd1 {0-1 (47) Le Goff,D (2342)-Al Tarbosh,W (2182) Chess.com INT 2021}) 15. O-O {[%emt 0:01:00]} Re8 {[%emt 0:01:11]} 16. Qc2 {[%emt 0:01:37]} Qe6 {[%emt 0:03:04]} 17. Rae1 {[%emt 0:08:01]} Neg4 {[%emt 0:06:39]} 18. g3 {[%emt 0:01:06]} h5 {[%emt 0:04:53][%cal Bh7h5,Bh5h4][%mdl 32]} 19. Bc4 {[%emt 0:04:16] Against h4} Qc8 {[%emt 0:00:55]} 20. Bc1 {[%emt 0:10:38]} (20. Qg6 Ne5 21. Qc2 Ba5 $17) 20... h4 {[%emt 0:03:57]} 21. Kg2 {[%emt 0:04:40]} (21. Qg6 $2 Ne5 22. Qc2 Ba5 $19) (21. f3 {simplifies} Ne5 22. Kg2 Nxc4 23. bxc4 h3+ 24. Kh1) 21... Ba5 {[%emt 0:10:33]} (21... Re5 $1 $15 22. Ne2 (22. Qg6 Nd5 $15) 22... Rh5) 22. f3 {[%emt 0:04:14] Dancing on a razor blade.} Ne5 {[%emt 0:01:18]} 23. Be2 {[%emt 0:05:02]} (23. Rd1 $11 {and White has nothing to worry.}) 23... Qc7 $2 {[%emt 0:00:40]} (23... h3+ $19 24. Kf2 Bxc3 25. Qxc3 Neg4+ $1 {[%mdl 512]} 26. Kg1 Nd5) 24. Rd1 $11 {[%emt 0:00:31]} Rad8 {[%emt 0:00:30]} 25. e4 {[%emt 0:00:05]} Rxd1 {[%emt 0:01:24]} (25... Ng6 $11 {remains equal.}) 26. Nxd1 $16 {[%emt 0:00:37]} (26. Rxd1 $6 Ng6 $11) 26... Rd8 {[%emt 0:02:57]} 27. Ne3 {[%emt 0:00:00]} Ng6 {[%emt 0:00:34]} 28. Nf5 {[%emt 0:00:24]} (28. f4 $16) 28... Ne7 {[%emt 0:02:35] Prevents e5.} (28... Bb4 $14) 29. Nxh4 $18 {[%emt 0:01:28]} ({Not} 29. gxh4 Nxf5 30. exf5 Rd4 $15) 29... Qb6 {[%emt 0:01:00]} 30. Rd1 {[%emt 0:00:35]} Rxd1 {[%emt 0:00:19]} 31. Qxd1 {[%emt 0:00:01]} Qc5 {[%emt 0:00:20]} 32. Kf1 $2 {[%emt 0:00:36]} ({Better is} 32. Bf4 $18 {Threatens to win with Bd6.} Qb6 33. Qd6) 32... Bb6 $11 {[%emt 0:00:22][%csl Gb6][%cal Rc5f2]} 33. Kg2 {[%emt 0:00:26] Bb2 is the strong threat.} g5 {[%emt 0:01:04] [#] White leaves nothing to chance now.} (33... Ba5 $1 $11) 34. Nf5 $1 $16 {[%emt 0:00:33]} Nxf5 {[%emt 0:00:10]} 35. exf5 {[%emt 0:00:01]} Qxf5 {[%emt 0:00:24]} 36. Qd2 {[%emt 0:00:35]} g4 {[%emt 0:01:03]} 37. Qg5+ {[%emt 0:01:16]} Qxg5 {[%emt 0:00:05]} 38. Bxg5 {[%emt 0:00:01]} gxf3+ {[%emt 0:00:13]} 39. Kxf3 {[%emt 0:00:12][%mdl 4096] Endgame KBB-KBN} Bd4 {[%emt 0:01:03]} 40. h4 {[%emt 0:00:00][%cal Bh2h4,Bh4h5][%mdl 32]} a6 {[%emt 0:00:00]} 41. g4 {[%emt 0:00:49]} b5 {[%emt 0:05:48]} 42. h5 {[%emt 0:09:16]} Bb2 {[%emt 0:05:43]} 43. Bd3 {[%emt 0:08:53]} Nd7 {[%emt 0:03:43]} 44. Bc2 {[%emt 0:02:52]} c5 {[%emt 0:04:03]} (44... Nc5 $16 45. axb5 Ne6) 45. Ke4 {[%emt 0:04:57]} c4 {[%emt 0:03:16] [#]} (45... Nf6+ $142 46. Kf5 Nd5 47. axb5 axb5) 46. bxc4 $1 $18 {[%emt 0:00:06]} bxc4 {[%emt 0:00:15]} 47. Be7 {[%emt 0:02:34]} Nf6+ {[%emt 0:01:38]} 48. Kf5 {[%emt 0:00:25]} Nd5 {[%emt 0:00:23]} 49. Bc5 {[%emt 0:00:02]} a5 $2 {[%emt 0:01:13]} (49... Bc1 {might work better.} 50. Ke4 Nf6+ 51. Kf3 Bb2) 50. h6 {[%emt 0:07:33]} Bc3 {[%emt 0:02:57]} 51. Be4 {[%emt 0:00:52]} Nc7 {[%emt 0:03:41]} 52. Be3 {[%emt 0:01:18] Prevents Bd2.} Bb4 $2 {[%emt 0:02:17]} (52... Ne8 53. Bf4 Nf6) 53. g5 {[%emt 0:00:34][%cal Bg4g5,Bg5g6][%mdl 32] Hoping for Bb6.} Bc3 {[%emt 0:00:47]} 54. Bb6 {[%emt 0:00:52]} Ne6 {[%emt 0:00:57]} 55. g6 {[%emt 0:00:45] White wants to mate with Bd5.} Nd4+ {[%emt 0:00:22]} 56. Bxd4 $2 {[%emt 0:00:03]} (56. Ke5 Nb3+ 57. Kd5 fxg6 58. Kxc4 Nd2+ 59. Kxc3 Nxe4+ 60. Kd4) 56... Bxd4 {[%emt 0:00:03]} 57. Bd5 $1 {[%emt 0:00:07][%csl LRc4,LRf7]} c3 $2 {[%emt 0:00:42]} (57... Kf8 $18 58. Bxf7 (58. gxf7 c3 $16) 58... Be3) 58. Bxf7+ {[%emt 0:00:07]} Kf8 {[%emt 0:00:35]} 59. Bb3 {[%emt 0:00:04] Weighted Error Value: White=0.28 (precise) /Black=0.41} 1-0

[Event "71st Greek Championship 2022"]
[Site "Athens"]
[Date "2022.12.06"]
[Round "4.5"]
[White "Mitsis, Georgios"]
[Black "Trimitzios, Petros"]
[Result "1/2-1/2"]
[ECO "D11"]
[WhiteElo "2365"]
[BlackElo "2358"]
[Annotator "TA"]
[PlyCount "60"]
[EventDate "2022.12.04"]
[EventType "tourn"]
[EventCountry "GRE"]
[SourceTitle "playchess.com"]
[Source "ChessBase"]
[SourceQuality "1"]
[TimeControl "40/5400+30:1800+30"]

{[%evp 9,60,27,57,57,52,59,62,52,67,69,62,70,87,56,45,60,92,86,83,83,85,31,31,31,50,31,38,31,32,12,20,19,32,0,37,-18,-22,-23,-16,-36,-30,-39,-14,-49,-49,-49,-49,-49,-49,-49,-49,-49,-49]} 1. d4 {[%emt 0:00:25]} d5 {[%emt 0:00:32]} 2. Nf3 {[%emt 0:00:17]} Nf6 {[%emt 0:00:15]} 3. c4 {[%emt 0:00:32]} c6 {[%emt 0:00:31]} 4. e3 {[%emt 0:00:26]} a6 {[%emt 0:00:05]} 5. Bd3 {[%emt 0:03:48]} b5 {[%emt 0:00:40]} 6. b3 {[%emt 0:01:16] D11: Slav Defence: 3 Nf3 sidelines and 3...Nf6 4 e3 Bg4.} Bg4 {[%emt 0:00:09]} 7. Nbd2 {[%emt 0:03:26]} e6 {[%emt 0:00:15]} 8. Qc2 {[%emt 0:01:42] White is slightly better.} Be7 {[%emt 0:02:13]} 9. Bb2 {[%emt 0:01:45]} Nbd7 {[%emt 0:02:25]} 10. O-O {[%emt 0:02:03]} Rc8 {[%emt 0:00:43]} 11. c5 {[%emt 0:07:43]} a5 {[%emt 0:03:01] [#]} 12. a3 $146 {[%emt 0:01:06]} ({Predecessor:} 12. Ne1 Bh5 13. a4 b4 14. h3 Bg6 15. g4 Bxd3 16. Nxd3 Ne4 17. Nxe4 dxe4 18. Ne5 Nxe5 19. dxe5 {½-½ (32) Luch,M (2356)-Leszczynski,K (2144) Lublin 2006}) 12... Bh5 {[%emt 0:01:16]} 13. b4 {[%emt 0:00:53]} a4 {[%emt 0:00:14]} 14. Ne5 {[%emt 0:03:56]} Bg6 {[%emt 0:11:10]} 15. f4 {[%emt 0:04:58] White is much more active. The black rooks are badly placed.} (15. Nxg6 $16 hxg6 16. Nf3) 15... Bxd3 $14 {[%emt 0:01:10]} 16. Qxd3 {[%emt 0:00:25]} Qc7 {[%emt 0:00:11]} 17. Rf3 {[%emt 0:01:02]} O-O {[%emt 0:14:26]} 18. Rh3 {[%emt 0:02:04]} g6 {[%emt 0:00:39]} 19. Kh1 {[%emt 0:10:24]} Kg7 {[%emt 0:05:16]} 20. Rg1 {[%emt 0:01:26]} h5 {[%emt 0:15:45]} 21. Rf3 {[%emt 0:06:18]} Ng4 {[%emt 0:03:49]} 22. h3 {[%emt 0:04:43] [#]} (22. e4 $14) 22... f5 $1 $11 {[%emt 0:00:20]} 23. g3 {[%emt 0:00:29] [#]} ({Don't play} 23. hxg4 Nxe5 24. dxe5 (24. fxe5 $2 {too greedy.} hxg4 25. Qf1 Rh8+ $19) 24... hxg4 $17) (23. Qe2 Ndf6) 23... Rh8 $1 {[%emt 0:02:34]} 24. Kg2 {[%emt 0:04:52]} (24. Rff1 Ngf6) 24... Ngf6 {[%emt 0:00:25]} 25. Rff1 {[%emt 0:02:11]} Rcg8 {[%emt 0:00:27]} 26. Ndf3 {[%emt 0:09:53]} (26. Qe2 {simplifies} Qc8 27. Rh1 Kf8 28. Nef3) 26... Ne4 {[%emt 0:01:57] Inhibits Ng5. Black is slightly better.} 27. Nxd7 {[%emt 0:09:45]} Qxd7 {[%emt 0:00:07]} 28. h4 {[%emt 0:08:03]} Bf6 {[%emt 0:00:15]} 29. Bc3 {[%emt 0:00:17]} Kf7 {[%emt 0:00:23]} 30. Rc1 {[%emt 0:00:33]} Ke8 {[%emt 0:00:31] Weighted Error Value: White=0.13 (very precise) /Black=0.08 (flawless)} 1/2-1/2

[Event "71st Greek Championship 2022"]
[Site "Athens"]
[Date "2022.12.07"]
[Round "5.1"]
[White "Trimitzios, Petros"]
[Black "Skembris, Spyridon"]
[Result "1/2-1/2"]
[ECO "D80"]
[WhiteElo "2358"]
[BlackElo "2381"]
[Annotator "TA"]
[PlyCount "68"]
[EventDate "2022.12.04"]
[EventType "tourn"]
[EventCountry "GRE"]
[SourceTitle "playchess.com"]
[Source "ChessBase"]
[SourceQuality "1"]
[TimeControl "40/5400+30:1800+30"]

{[%evp 22,68,0,0,0,-5,0,-17,-12,-13,-10,-24,0,0,0,0,26,37,21,29,24,31,27,0,0,0,0,-12,-12,-12,-13,-13,0,-14,-8,-10,-8,-8,0,0,0,0,0,0,0,0,0,-4,0]} 1. Nf3 {[%emt 0:00:13]} c5 {[%emt 0:01:33]} 2. c4 {[%emt 0:00:10]} Nc6 {[%emt 0:01:04]} 3. Nc3 {[%emt 0:00:06]} g6 {[%emt 0:00:18]} 4. e3 {[%emt 0:00:05]} Nf6 {[%emt 0:00:21]} 5. d4 {[%emt 0:00:07]} cxd4 {[%emt 0:00:24]} 6. exd4 {[%emt 0:00:05]} d5 {[%emt 0:00:47]} 7. Bg5 {[%emt 0:00:47]} Ne4 {[%emt 0:01:01]} 8. Bf4 {[%emt 0:02:07]} Nxc3 {[%emt 0:01:00]} 9. bxc3 {[%emt 0:00:05]} Bg7 {[%emt 0:00:07]} 10. Be2 {[%emt 0:03:03]} O-O {[%emt 0:01:22]} 11. O-O {[%emt 0:00:06]} dxc4 {[%emt 0:02:29]} 12. Bxc4 {[%emt 0:00:34]} Bg4 {[%emt 0:07:42] D80: Grünfeld: Unusual White 4th moves and 4 Bg5.} 13. Be2 {[%emt 0:04:07]} Rc8 {[%emt 0:01:03]} 14. Rc1 {[%emt 0:01:23]} Qa5 {[%emt 0:03:38]} (14... Be6 {simplifies} 15. Qd2 Na5 16. Bd3 Bc4) 15. Qb3 {[%emt 0:07:56] [#]} e5 $146 {[%emt 0:07:32]} ({Predecessor:} 15... Qf5 16. Bg3 Na5 17. Qb4 b6 18. Nh4 Qd7 19. Bxg4 Qxg4 20. Qxe7 Bh6 21. h3 Qh5 22. f4 Nc4 {½-½ (45) Hoi,C (2348)-Rewitz,P (2264) Denmark 2022}) 16. dxe5 {[%emt 0:05:03]} b6 {[%emt 0:09:10][%cal Rc6e5]} 17. Rfd1 {[%emt 0:11:29][%cal Bf1d1,Bd1d5,Bd5a5][%mdl 32]} Nxe5 {[%emt 0:28:50]} 18. Rd5 {[%emt 0:07:13]} Nxf3+ {[%emt 0:01:03]} (18... Rc5 $5 {[%cal Rc5d5]} 19. Nxe5 Bxe2 $11) 19. Bxf3 {[%emt 0:01:25]} Be6 {[%emt 0:00:23]} 20. Rxa5 {[%emt 0:00:10]} Bxb3 {[%emt 0:00:05]} 21. Rxa7 {[%emt 0:00:10]} Be6 {[%emt 0:00:31]} 22. Bd6 {[%emt 0:05:53]} Rfd8 {[%emt 0:06:56] The position is equal.} 23. Bb4 {[%emt 0:02:27]} Rd2 {[%emt 0:00:46]} 24. Ra8 {[%emt 0:33:58]} Rxa8 {[%emt 0:01:50]} 25. Bxa8 {[%emt 0:00:09]} Rxa2 {[%emt 0:00:08]} 26. Bc6 {[%emt 0:01:01]} Bh6 {[%emt 0:12:51]} 27. Rd1 {[%emt 0:00:36]} Bd2 {[%emt 0:00:25]} 28. Be4 {[%emt 0:04:01]} Bb3 {[%emt 0:03:04]} 29. Rb1 {[%emt 0:01:23]} Bc2 {[%emt 0:00:31]} 30. Bxc2 {[%emt 0:00:06]} Rxc2 {[%emt 0:00:06]} 31. Kf1 {[%emt 0:00:08]} h5 {[%emt 0:00:54]} 32. Rb3 {[%emt 0:01:05]} Bf4 {[%emt 0:02:01]} 33. h3 {[%emt 0:00:15]} Be5 {[%emt 0:00:52]} 34. g4 {[%emt 0:01:09]} hxg4 {[%emt 0:00:45] A balanced but interesting game.   Weighted Error Value: White=0.04 (flawless) /Black=0.05 (flawless)} 1/2-1/2

[Event "71st Greek Championship 2022"]
[Site "Athens"]
[Date "2022.12.07"]
[Round "5.2"]
[White "Marinakis, Hristos"]
[Black "Mitsis, Georgios"]
[Result "0-1"]
[ECO "C95"]
[WhiteElo "2118"]
[BlackElo "2365"]
[Annotator "TA"]
[PlyCount "128"]
[EventDate "2022.12.04"]
[EventType "tourn"]
[EventCountry "GRE"]
[SourceTitle "playchess.com"]
[Source "ChessBase"]
[SourceQuality "1"]
[TimeControl "40/5400+30:1800+30"]

{[%evp 21,128,19,26,19,19,20,27,27,27,23,35,0,25,17,43,19,19,0,0,0,0,0,0,0,0,0,0,-20,-20,-19,0,-19,0,-19,62,-19,71,20,58,0,45,-19,22,13,14,-19,12,-22,-22,-22,6,0,12,14,20,0,0,0,0,0,0,-268,-250,-262,-133,-132,0,0,0,0,0,0,0,0,0,0,0,0,0,0,0,0,0,0,0,0,0,0,0,0,0,0,0,0,0,0,0,-5952,0,0,0,-5632,-5497,-5397,-5393,-29985,-29982,-29986,-29987]} 1. e4 {[%emt 0:00:04]} e5 {[%emt 0:03:17]} 2. Nf3 {[%emt 0:00:04]} Nc6 {[%emt 0:00:16]} 3. Bb5 {[%emt 0:00:15]} a6 {[%emt 0:00:24]} 4. Ba4 {[%emt 0:00:05]} Nf6 {[%emt 0:00:15]} 5. O-O {[%emt 0:00:09]} Be7 {[%emt 0:00:23]} 6. Re1 {[%emt 0:00:10]} b5 {[%emt 0:00:54]} 7. Bb3 {[%emt 0:00:05]} d6 {[%emt 0:00:08]} 8. c3 {[%emt 0:00:16]} O-O {[%emt 0:00:18]} 9. h3 {[%emt 0:00:04]} Nb8 {[%emt 0:01:19]} 10. d4 {[%emt 0:01:15]} Nbd7 {[%emt 0:01:05]} 11. Nbd2 {[%emt 0:00:53][%cal Bb1d2,Bd2f1,Bf1g3][%mdl 32]} c5 {[%emt 0:00:15]} 12. Nf1 {[%emt 0:15:53] C95: Closed Ruy Lopez: Breyer Variation with 10 d4.} Re8 {[%emt 0:01:53]} 13. Ng3 {[%emt 0:03:52]} Bf8 {[%emt 0:01:48]} 14. d5 {[%emt 0:08:26] White has an edge.} c4 {[%emt 0:01:27]} 15. Bc2 {[%emt 0:00:04]} Qc7 {[%emt 0:03:03]} 16. Bg5 {[%emt 0:01:59]} h6 {[%emt 0:00:46]} 17. Be3 {[%emt 0:00:09]} Nc5 {[%emt 0:00:10]} 18. Nh2 {[%emt 0:08:40]} a5 {[%emt 0:02:05] [#]} 19. Ng4 $146 {[%emt 0:02:16]} ({Predecessor:} 19. Qf3 Be7 20. Nh5 Nxh5 21. Qxh5 b4 22. Ng4 Bxg4 23. Qxg4 Bg5 24. Bxg5 hxg5 25. Qxg5 b3 26. Bd1 Nd3 27. Re2 bxa2 28. Rxa2 Reb8 29. Rc2 a4 30. Be2 a3 {1-0 (30) Bocharov,I (2568)-Maiorov,N (2495) Moscow 2021}) 19... Nxg4 {[%emt 0:06:28]} 20. hxg4 {[%emt 0:00:05]} Be7 {[%emt 0:00:13]} 21. Nf5 {[%emt 0:22:19]} Bg5 {[%emt 0:02:26]} 22. Qd2 {[%emt 0:05:28]} Qd8 {[%emt 0:02:23]} 23. Bxg5 {[%emt 0:04:07]} hxg5 {[%emt 0:00:09]} 24. g3 {[%emt 0:00:06]} g6 {[%emt 0:01:28]} 25. Ne3 {[%emt 0:00:20]} Kg7 {[%emt 0:04:05]} 26. Kg2 {[%emt 0:00:21]} Qe7 {[%emt 0:02:27]} 27. Rh1 {[%emt 0:04:01]} Ba6 {[%emt 0:02:20]} ({Black should try} 27... a4 $11) 28. Rh5 {[%emt 0:07:31]} Rh8 {[%emt 0:03:47] [#]} (28... gxh5 $2 29. Nf5+ Kf6 30. Nxe7 Rxe7 31. gxh5 $18) (28... Nxe4 $2 29. Bxe4 Qf6 30. Rhh1 $18) (28... Qf6 $11 {keeps the balance.} 29. Rh3 Rh8) 29. Rxh8 {[%emt 0:01:35]} (29. b4 $1 $16 {[%cal Ob4c5]} axb4 (29... Nd7 30. a4) 30. cxb4 $1) 29... Kxh8 {[%emt 0:01:17]} 30. f3 {[%emt 0:03:23]} (30. b4 $14 cxb3 31. axb3) 30... Kg7 {[%emt 0:00:40]} 31. Rh1 {[%emt 0:03:41]} (31. b4 $14 cxb3 32. axb3) 31... Rh8 {[%emt 0:00:32]} (31... a4 {keeps more tension.} 32. Kf1 Qf6 33. Kg2 Rh8) 32. Rxh8 {[%emt 0:00:39]} Kxh8 {[%emt 0:00:07]} 33. Bd1 {[%emt 0:04:04]} f6 {[%emt 0:00:24]} 34. Be2 {[%emt 0:00:37]} Qc7 {[%emt 0:00:37]} 35. Qc2 {[%emt 0:01:57]} Nd7 {[%emt 0:08:23]} 36. b4 {[%emt 0:02:23]} cxb3 {[%emt 0:08:58]} 37. axb3 {[%emt 0:00:08][%cal Ba2b3,Bb3b4][%mdl 32]} Qc5 {[%emt 0:02:21] Inhibits b4.} 38. Kf2 {[%emt 0:01:09][%cal Ob3b4]} Qa3 {[%emt 0:09:45]} 39. Qb1 {[%emt 0:00:43]} Nc5 {[%emt 0:02:11][%cal Bd7c5,Bc5a4,Ba4c3][%mdl 32]} 40. b4 {[%emt 0:00:00]} Na4 {[%emt 0:00:00]} 41. c4 {[%emt 0:10:17][%mdl 8192]} ({Much worse is} 41. bxa5 Nxc3 42. Qd3 (42. Qh1+ $2 Kg7 $19) 42... Qxa5 $19) (41. Nf5 $11 {and White has nothing to worry.} gxf5 42. Qh1+ Kg7 43. Qh5 fxg4 44. Qe8) 41... Nc3 $19 {[%emt 0:08:53]} 42. Qc2 {[%emt 0:04:29] And now cxb5 would win.} bxc4 {[%emt 0:08:23]} ({Inferior is} 42... Qxb4 43. cxb5 Bxb5 44. Bxb5 $11) (42... Nxe2 $19 43. Qxe2 Qxb4 44. cxb5 Bxb5) 43. bxa5 $17 {[%emt 0:05:22]} Qb4 {[%emt 0:08:27] Black is more active.} (43... Nxe2 $1 $17 44. Qxe2 Qxa5) 44. Bf1 $11 {[%emt 0:04:00]} Qxa5 {[%emt 0:07:49]} 45. Bxc4 {[%emt 0:02:16]} (45. Nxc4 $2 {too greedy.} Bxc4 46. Bxc4 Qc5+ 47. Kg2 Qxc4 $19) 45... Bxc4 {[%emt 0:00:36]} 46. Nxc4 {[%emt 0:00:04][%mdl 4096] Endgame KQN-KQN} Qc5+ {[%emt 0:00:06]} 47. Ne3 {[%emt 0:00:07]} Qd4 {[%emt 0:01:00]} 48. Qc1 {[%emt 0:02:09]} Kg7 {[%emt 0:01:50]} 49. Qe1 {[%emt 0:01:52]} Qd3 {[%emt 0:01:19]} 50. Nf1 {[%emt 0:01:49]} Kh6 {[%emt 0:05:09]} 51. Qd2 {[%emt 0:00:32]} Qc4 {[%emt 0:00:28]} 52. Ne3 {[%emt 0:01:47]} Qc5 {[%emt 0:00:50]} 53. Kg2 {[%emt 0:00:26]} Kg7 {[%emt 0:03:29]} 54. Nc2 {[%emt 0:01:02]} Nb5 {[%emt 0:00:38]} 55. Qf2 {[%emt 0:01:30]} Qc3 {[%emt 0:00:30]} 56. Qe2 {[%emt 0:00:31]} Qb3 {[%emt 0:03:13]} 57. Kh3 {[%emt 0:00:52]} Qb1 {[%emt 0:02:56]} 58. Kg2 {[%emt 0:00:30] Prevents Qh1+.} Nc3 {[%emt 0:00:20]} 59. Qd3 {[%emt 0:00:20][%mdl 8192]} (59. Qd2 $11 Qb2 60. Kg1) 59... Qb2 $2 {[%emt 0:00:33]} ({Better is} 59... Nd1 $1 $19 60. Qe2 Qxc2 $3 {[%mdl 512]} 61. Qxc2 Ne3+ 62. Kh3 Nxc2) 60. Kh3 {[%emt 0:00:27]} Qb1 $2 {[%emt 0:01:21][%mdl 8192]} 61. Kg2 $19 {[%emt 0:00:06] [#]} Nd1 {[%emt 0:00:36][%cal Ob1c2] White must now prevent ...Qxc2+!} 62. Nb4 {[%emt 0:01:10]} Qb2+ {[%emt 0:00:10]} 63. Kg1 {[%emt 0:00:28]} Qf2+ {[%emt 0:00:17]} 64. Kh1 {[%emt 0:00:05]} Ne3 {[%emt 0:00:17] Weighted Error Value: White=0.43/Black=0.32} 0-1